fUSD/lending_fUSD_20250206
["ID","MTS","AMOUNT","RATE_DAILY","PERIOD"]
[351847240,1738817441158,-507.91573231,0.00020201,3]
[351847241,1738817441167,-512.26057198,0.00020201,3]
[351847242,1738817441177,-505.26378108,0.00020201,3]
[351847243,1738817441186,-520.05758573,0.00020201,3]
[351847244,1738817441195,-516.67627278,0.00020201,3]
[351847245,1738817441205,-500.0,0.00020201,3]
[351847246,1738817441214,-521.10010648,0.00020201,3]
[351847247,1738817441223,-526.31590391,0.00020201,3]
[351847248,1738817441233,-503.38175722,0.00020201,3]
[351847249,1738817441242,-515.28179741,0.00020201,3]
[351847250,1738817441252,-519.61691118,0.00020201,3]
[351847251,1738817441262,-461.00081353,0.00020201,3]
[351847252,1738817441271,-500.0,0.00020201,3]
[351847253,1738817441281,-504.34520512,0.00020201,3]
[351847254,1738817441290,-514.68463431,0.00020201,3]
[351847255,1738817441300,-512.47763383,0.00020201,3]
[351847256,1738817441309,-508.18414383,0.00020201,3]
[351847257,1738817441319,-518.81161885,0.00020201,3]
[351847258,1738817441328,-511.83722483,0.00020201,3]
[351847259,1738817441338,-506.22624289,0.00020201,3]
[351847260,1738817441348,-320.723376,0.00020201,3]
[351847261,1738817441364,-875.4,0.00020201,3]
[351847262,1738817441373,-875.4,0.00020201,3]
[351847263,1738817441383,-875.4,0.00020201,3]
[351847264,1738817441392,-875.4,0.00020201,3]
[351847265,1738817441402,-875.4,0.00020201,3]
[351847266,1738817441412,-875.4,0.00020201,3]
[351847267,1738817441422,-875.4,0.00020201,3]
[351847268,1738817441434,-875.4,0.00020201,3]
[351847269,1738817441444,-875.4,0.00020201,3]
[351847270,1738817441453,-875.4,0.00020201,3]
[351847271,1738817441462,-875.4,0.00020201,3]
[351847272,1738817441472,-875.4,0.00020201,3]
[351847273,1738817441482,-875.4,0.00020201,3]
[351847274,1738817441492,-875.4,0.00020201,3]
[351847275,1738817441501,-875.4,0.00020201,3]
[351847276,1738817441511,-875.4,0.00020201,3]
[351847277,1738817441520,-875.4,0.00020201,3]
[351847278,1738817441530,-875.4,0.00020201,3]
[351847279,1738817441540,-875.4,0.00020201,3]
[351847280,1738817441549,-875.4,0.00020201,3]
[351847281,1738817441559,-875.4,0.00020201,3]
[351847282,1738817441569,-875.4,0.00020201,3]
[351847283,1738817441578,-875.4,0.00020201,3]
[351847284,1738817441589,-875.52100229,0.00020201,3]
[351847285,1738817441599,-520.22107201,0.00020201,3]
[351847286,1738817441609,-518.94292598,0.00020201,3]
[351847287,1738817441619,-512.18052655,0.00020201,3]
[351847288,1738817441630,-456.43966884,0.00020201,3]
[351847289,1738817441639,-500.0,0.00020201,3]
[351847290,1738817441649,-500.0,0.00020201,3]
[351847291,1738817441658,-500.0,0.00020201,3]
[351847292,1738817441668,-363.33669215,0.00020201,3]
[351847293,1738817441678,-508.52590799,0.00020201,3]
[351847294,1738817441688,-511.10701944,0.00020201,3]
[351847295,1738817441697,-500.0,0.00020201,3]
[351847296,1738817441706,-510.63809402,0.00020201,3]
[351847297,1738817441715,-500.0,0.00020201,3]
[351847298,1738817441725,-501.34036707,0.00020201,3]
[351847299,1738817441734,-513.61448034,0.00020201,3]
[351847300,1738817441743,-515.88327413,0.00020201,3]
[351847301,1738817441752,-517.25531118,0.00020201,3]
[351847302,1738817441762,-502.51348251,0.00020201,3]
[351847303,1738817441772,-500.0,0.00020201,3]
[351847304,1738817441782,-558.5932904,0.00020201,3]
[351847305,1738817441791,-503.6534978,0.00020201,3]
[351847306,1738817441800,-500.0,0.00020201,3]
[351847307,1738817441810,-524.59860003,0.00020201,3]
[351847308,1738817441819,-524.04619372,0.00020201,3]
[351847309,1738817441828,-523.24480607,0.00020201,3]
[351847310,1738817441837,-335.29083517,0.00020201,3]
[351847311,1738817441847,-500.0,0.00020201,3]
[351847312,1738817441856,-534.41599199,0.00020201,3]
[351847313,1738817441865,-2009.2476,0.00020201,2]
[351847314,1738817441875,-514.22714301,0.00020201,3]
[351847315,1738817441885,-526.79452337,0.00020201,3]
[351847316,1738817441894,-500.0,0.00020201,3]
[351847317,1738817441903,-500.0,0.00020201,3]
[351847318,1738817441913,-493.04992498,0.00020201,3]
[351847319,1738817441922,-500.0,0.00020201,3]
[351847320,1738817441931,-500.0,0.00020201,3]
[351847321,1738817441941,-573.12223712,0.00020201,3]
[351847322,1738817441950,-522.75566115,0.00020201,3]
[351847323,1738817441959,-517.37211383,0.00020201,3]
[351847324,1738817441968,-500.0,0.00020201,3]
[351847325,1738817441978,-255.60996055,0.00020201,3]
[351847326,1738817441987,-500.0,0.00020201,3]
[351847327,1738817441996,-500.0,0.00020201,3]
[351847328,1738817442006,-518.477746,0.00020201,3]
[351847329,1738817442015,-1000.0,0.00020201,2]
[351847330,1738817442024,-500.0,0.00020201,2]
[351847331,1738817442034,-500.0,0.00020201,2]
[351847332,1738817442043,-500.0,0.00020201,2]
[351847333,1738817442053,-528.49426867,0.00020201,2]
[351847334,1738817442062,-538.14655595,0.00020201,3]
[351847335,1738817442072,-500.0,0.00020201,3]
[351847336,1738817442081,-500.0,0.00020201,3]
[351847337,1738817442091,-307.21444551,0.00020201,3]
[351847338,1738817442100,-500.0,0.00020201,3]
[351847339,1738817442112,-259.11373345,0.00020201,3]
[351847340,1738817442122,-509.14008062,0.00020201,3]
[351847341,1738817442132,-500.0,0.00020201,3]
[351847342,1738817442141,-500.0,0.00020201,3]
[351847343,1738817442151,-500.0,0.00020201,3]
[351847344,1738817442160,-311.04660095,0.00020201,3]
[351847345,1738817442170,-527.96639667,0.00020201,3]
[351847346,1738817442179,-611.22875841,0.00020201,3]
[351847347,1738817442188,-1020.80537368,0.00020201,3]
[351847348,1738817442197,-522.96782706,0.00020201,3]
[351847349,1738817442207,-1383.97,0.00020201,3]
[351847350,1738817442216,-1383.97,0.00020201,3]
[351847351,1738817442313,-1383.97,0.00020201,3]
[351847352,1738817442322,-1383.97,0.00020201,3]
[351847353,1738817442332,-1383.97,0.00020201,3]
[351847354,1738817442341,-1383.97,0.00020201,3]
[351847355,1738817442351,-1383.97,0.00020201,3]
[351847356,1738817442363,-1383.97,0.00020201,3]
[351847357,1738817442372,-1383.97,0.00020201,3]
[351847358,1738817442382,-1383.97,0.00020201,3]
[351847359,1738817442391,-1383.97,0.00020201,3]
[351847360,1738817442401,-1383.97,0.00020201,3]
[351847361,1738817442410,-1383.97,0.00020201,3]
[351847362,1738817442419,-1383.97,0.00020201,3]
[351847363,1738817442428,-1383.97,0.00020201,3]
[351847364,1738817442437,-1383.97,0.00020201,3]
[351847365,1738817442446,-1383.97,0.00020201,3]
[351847366,1738817442456,-1383.97,0.00020201,3]
[351847367,1738817442467,-1383.97,0.00020201,3]
[351847368,1738817442477,-1383.97,0.00020201,3]
[351847369,1738817442486,-1383.97,0.00020201,3]
[351847370,1738817442495,-1383.97,0.00020201,3]
[351847371,1738817442504,-1384.07482316,0.00020201,3]
[351847372,1738817442513,-500.0,0.00020201,3]
[351847373,1738817442522,-500.0,0.00020201,3]
[351847374,1738817442532,-500.0,0.00020201,3]
[351847375,1738817442541,-500.0,0.00020201,3]
[351847376,1738817442550,-500.0,0.00020201,3]
[351847377,1738817442559,-500.0,0.00020201,3]
[351847378,1738817442569,-500.0,0.00020201,3]
[351847379,1738817442579,-500.0,0.00020201,3]
[351847380,1738817442588,-500.0,0.00020201,3]
[351847381,1738817442597,-500.0,0.00020201,3]
[351847382,1738817442606,-500.0,0.00020201,3]
[351847383,1738817442616,-500.0,0.00020201,3]
[351847384,1738817442625,-500.0,0.00020201,3]
[351847385,1738817442634,-500.0,0.00020201,3]
[351847386,1738817442645,-500.0,0.00020201,3]
[351847387,1738817442655,-500.0,0.00020201,3]
[351847388,1738817442665,-500.0,0.00020201,3]
[351847389,1738817442676,-500.0,0.00020201,3]
[351847390,1738817442686,-625.55838115,0.00020201,3]
[351847391,1738817442696,-255.94058017,0.00020201,3]
[351847392,1738817442706,-512.16837543,0.00020201,3]
[351847393,1738817442715,-510.58606133,0.00020201,3]
[351847394,1738817442724,-506.80603054,0.00020201,3]
[351847395,1738817442734,-265.15161337,0.00020201,3]
[351847396,1738817442743,-500.0,0.00020201,3]
[351847397,1738817442752,-500.0,0.00020201,3]
[351847398,1738817442762,-259.37979992,0.00020201,3]
[351847399,1738817442771,-500.0,0.00020201,3]
[351847400,1738817442780,-500.0,0.00020201,3]
[351847401,1738817442790,-500.0,0.00020201,3]
[351847402,1738817442799,-500.0,0.00020201,3]
[351847403,1738817442808,-500.0,0.00020201,3]
[351847404,1738817442817,-500.0,0.00020201,3]
[351847405,1738817442827,-530.2864411,0.00020201,3]
[351847406,1738817442835,-500.0,0.00020201,3]
[351847407,1738817442844,-500.0,0.00020201,3]
[351847408,1738817442853,-500.0,0.00020201,3]
[351847409,1738817442863,-500.0,0.00020201,3]
[351847410,1738817442873,-500.0,0.00020201,3]
[351847411,1738817442882,-500.0,0.00020201,3]
[351847412,1738817442891,-516.6206363,0.00020201,3]
[351847413,1738817442900,-280.02118962,0.00020201,3]
[351847414,1738817442910,-500.0,0.00020201,3]
[351847415,1738817442920,-500.0,0.00020201,3]
[351847416,1738817442930,-500.0,0.00020201,3]
[351847417,1738817442939,-500.0,0.00020201,3]
[351847418,1738817442948,-500.0,0.00020201,3]
[351847419,1738817442957,-554.20903458,0.00020201,3]
[351847420,1738817442966,-500.0,0.00020201,3]
[351847421,1738817442976,-500.0,0.00020201,3]
[351847422,1738817442985,-550.3641407,0.00020201,3]
[351847423,1738817442995,-518.02332103,0.00020201,3]
[351847424,1738817443004,-507.66220526,0.00020201,3]
[351847425,1738817443013,-510.7631959,0.00020201,3]
[351847426,1738817443023,-511.78276746,0.00020201,3]
[351847427,1738817443032,-500.0,0.00020201,3]
[351847428,1738817443042,-504.1679292,0.00020201,3]
[351847429,1738817443051,-500.81503348,0.00020201,3]
[351847430,1738817443061,-1213.62,0.00020201,2]
[351847431,1738817443070,-500.0,0.00020201,3]
[351847432,1738817443080,-500.0,0.00020201,3]
[351847433,1738817443089,-446.3317366,0.00020201,3]
[351847434,1738817443099,-500.0,0.00020201,3]
[351847435,1738817443108,-592.8185056,0.00020201,3]
[351847436,1738817443117,-500.0,0.00020201,3]
[351847438,1738817443127,-273.24178116,0.00020201,3]
[351847440,1738817443136,-500.0,0.00020201,3]
[351847442,1738817443145,-500.0,0.00020201,3]
[351847443,1738817443154,-500.0,0.00020201,3]
[351847444,1738817443164,-509.97712914,0.00020201,3]
[351847445,1738817443173,-597.65243107,0.00020201,3]
[351847446,1738817443183,-502.07354474,0.00020201,3]
[351847447,1738817443192,-500.0,0.00020201,3]
[351847448,1738817443201,-514.04191447,0.00020201,3]
[351847449,1738817443210,-2305.15,0.00020201,3]
[351847450,1738817443220,-2305.15,0.00020201,3]
[351847451,1738817443230,-2305.15,0.00020201,3]
[351847452,1738817443239,-2305.15,0.00020201,3]
[351847453,1738817443248,-2305.15,0.00020201,3]
[351847454,1738817443258,-2305.15,0.00020201,3]
[351847455,1738817443267,-2305.15,0.00020201,3]
[351847456,1738817443276,-500.0,0.00020201,3]
[351847457,1738817443287,-509.79792142,0.00020201,3]
[351847458,1738817443297,-2305.15,0.00020201,3]
[351847459,1738817443307,-2305.15,0.00020201,3]
[351847460,1738817443316,-2305.15,0.00020201,3]
[351847461,1738817443326,-2305.15,0.00020201,3]
[351847462,1738817443335,-2305.15,0.00020201,3]
[351847463,1738817443344,-2305.15,0.00020201,3]
[351847464,1738817443356,-2305.15,0.00020201,3]
[351847465,1738817443365,-2305.15,0.00020201,3]
[351847466,1738817443374,-2305.15,0.00020201,3]
[351847467,1738817443384,-2305.15,0.00020201,3]
[351847468,1738817443393,-2305.15,0.00020201,3]
[351847469,1738817443403,-2305.15,0.00020201,3]
[351847470,1738817443412,-2305.15,0.00020201,3]
[351847471,1738817443421,-2305.15,0.00020201,3]
[351847472,1738817443431,-2305.15,0.00020201,3]
[351847473,1738817443441,-2305.16397098,0.00020201,3]
[351847474,1738817443450,-500.0,0.00020201,3]
[351847475,1738817443459,-500.0,0.00020201,3]
[351847476,1738817443469,-525.3308423,0.00020201,3]
[351847477,1738817443478,-500.0,0.00020201,3]
[351847478,1738817443487,-500.0,0.00020201,3]
[351847479,1738817443496,-500.0,0.00020201,3]
[351847480,1738817443505,-514.98308699,0.00020201,3]
[351847481,1738817443514,-500.0,0.00020201,3]
[351847482,1738817443524,-500.0,0.00020201,3]
[351847483,1738817443534,-500.0,0.00020201,3]
[351847484,1738817443543,-500.0,0.00020201,3]
[351847485,1738817443552,-500.0,0.00020201,3]
[351847486,1738817443563,-500.0,0.00020201,3]
[351847487,1738817443572,-412.5534473,0.00020201,3]
[351847488,1738817443581,-500.0,0.00020201,3]
[351847489,1738817443590,-500.0,0.00020201,3]
[351847491,1738817443599,-500.0,0.00020201,3]
[351847492,1738817443608,-500.0,0.00020201,3]
[351847493,1738817443618,-500.0,0.00020201,3]
[351847494,1738817443626,-500.0,0.00020201,3]
[351847495,1738817443635,-500.0,0.00020201,3]
[351847496,1738817443644,-398.12616397,0.00020201,3]
[351847497,1738817443653,-500.0,0.00020201,3]
[351847498,1738817443662,-500.0,0.00020201,3]
[351847500,1738817443671,-500.0,0.00020201,3]
[351847502,1738817443681,-505.4041061,0.00020201,3]
[351847504,1738817443690,-500.0,0.00020201,3]
[351847505,1738817443699,-500.0,0.00020201,3]
[351847506,1738817443709,-500.0,0.00020201,3]
[351847507,1738817443718,-500.0,0.00020201,3]
[351847508,1738817443727,-500.0,0.00020201,3]
[351847509,1738817443736,-500.0,0.00020201,3]
[351847510,1738817443746,-500.0,0.00020201,3]
[351847511,1738817443755,-500.0,0.00020201,3]
[351847512,1738817443765,-500.0,0.00020201,3]
[351847513,1738817443774,-500.0,0.00020201,3]
[351847514,1738817443784,-500.0,0.00020201,3]
[351847515,1738817443793,-500.0,0.00020201,3]
[351847516,1738817443803,-500.0,0.00020201,3]
[351847517,1738817443812,-500.0,0.00020201,3]
[351847518,1738817443821,-500.0,0.00020201,3]
[351847519,1738817443830,-500.0,0.00020201,3]
[351847520,1738817443839,-500.0,0.00020201,3]
[351847521,1738817443848,-616.56196987,0.00020201,3]
[351847522,1738817443858,-500.0,0.00020201,3]
[351847523,1738817443868,-440.62864076,0.00020201,3]
[351847524,1738817443879,-500.0,0.00020201,3]
[351847525,1738817443888,-666.0,0.00020201,2]
[351847526,1738817443899,-669.68307831,0.00020201,2]
[351847527,1738817443908,-666.0,0.00020201,2]
[351847528,1738817443917,-500.0,0.00020201,2]
[351847529,1738817443926,-500.0,0.00020201,2]
[351847530,1738817443937,-543.24686274,0.00020201,2]
[351847531,1738817443946,-239.65741907,0.00020201,2]
[351847532,1738817443956,-156.0163774,0.00020201,2]
[351847533,1738817443965,-156281.48950231,0.00020201,2]
[351847535,1738817443974,-3990261.01205311,0.00020202,30]
[351847536,1738817443983,-324.22351497,0.00020202,120]
[351847537,1738817443993,-1961.23099271,0.00020202,5]
[351847538,1738817444003,-695.6588482,0.00020202,10]
[351847539,1738817444011,-439.53618509,0.00020202,30]
[351847540,1738817444020,-502771.18247093,0.00020202,30]
[351847544,1738817444146,-260.97693907,0.00020201,3]
[351847546,1738817444161,-239.02306093,0.00020201,3]
[351847547,1738817444171,-581.02602401,0.00020201,3]
[351847548,1738817444180,-14116.72208313,0.00020202,30]
[351847549,1738817444193,-8437.70311936,0.00020202,30]
[351847550,1738817444211,-745.8085017,0.00020202,30]
[351847551,1738817446427,-195249.5381332,0.00020202,30]
[351847552,1738817446541,-8592.044,0.00020202,30]
[351847553,1738817446553,-186236.91888945,0.00020202,30]
[351847554,1738817477311,2500.0,0.0002,120]
[351847555,1738817780209,283.67,0.00010137,2]
[351847567,1738818631572,-283.67,0.00016813,2]
[351847568,1738818631582,-150.0,0.00016861,2]
[351847569,1738818631591,-288.04,0.00017199,2]
[351847570,1738818631601,-150.0,0.00017468,2]
[351847571,1738818631611,-130.79136,0.00018495,2]
[351847578,1738818637827,-19.20864,0.00018495,2]
[351847579,1738818637837,-421.4,0.00018848,2]
[351847580,1738818637846,-572.57,0.0001886,30]
[351847581,1738818637857,-400.04,0.00018891,2]
[351847582,1738818637867,-1000.0,0.00018944,2]
[351847583,1738818637876,-198.55,0.00018988,2]
[351847584,1738818637885,-371.19,0.00019007,2]
[351847586,1738818637894,-150.0,0.00019178,2]
[351847588,1738818637903,-200.0,0.00019201,2]
[351847591,1738818637916,-370.86,0.0001924,2]
[351847593,1738818637925,-2145.5618049,0.00019261,2]
[351847595,1738818637935,-375.6,0.00019261,2]
[351847596,1738818637944,-373.05,0.00019293,2]
[351847599,1738818637954,-375.29,0.00019342,2]
[351847600,1738818637964,-373.05,0.00019406,2]
[351847602,1738818637973,-288.04,0.00019463,2]
[351847604,1738818637982,-374.26,0.00019515,2]
[351847606,1738818637991,-400.04,0.0001959,2]
[351847608,1738818638000,-380.32,0.0001968,2]
[351847610,1738818638010,-150.0,0.00019683,2]
[351847612,1738818638019,-300.0,0.00019997,2]
[351847614,1738818638028,-372.35,0.00019999,2]
[351847616,1738818638037,-372.77,0.00019999,2]
[351847618,1738818638046,-373.87,0.00019999,2]
[351847620,1738818638056,-379.98,0.00019999,2]
[351847622,1738818638066,-380.1,0.00019999,2]
[351847624,1738818638076,-3000.0,0.0002,2]
[351847626,1738818638085,-496.59520429,0.0002,3]
[351847628,1738818638094,-500.0,0.0002,3]
[351847630,1738818638103,-521.44479828,0.0002,3]
[351847632,1738818638113,-500.0,0.0002,3]
[351847634,1738818638122,-500.0,0.0002,3]
[351847636,1738818638132,-500.0,0.0002,3]
[351847638,1738818638141,-500.0,0.0002,3]
[351847641,1738818638151,-500.0,0.0002,3]
[351847643,1738818638161,-500.0,0.0002,3]
[351847645,1738818638170,-246.33121297,0.0002,3]
[351847646,1738818638180,-500.0,0.0002,3]
[351847649,1738818638189,-502.88942784,0.0002,3]
[351847650,1738818638199,-500.0,0.0002,3]
[351847653,1738818638208,-500.0,0.0002,3]
[351847655,1738818638217,-500.0,0.0002,3]
[351847657,1738818638227,-500.0,0.0002,3]
[351847659,1738818638236,-401.84,0.0002,3]
[351847660,1738818638246,-500.0,0.0002,3]
[351847663,1738818638256,-500.0,0.0002,3]
[351847665,1738818638265,-500.0,0.0002,3]
[351847667,1738818638275,-500.0,0.0002,3]
[351847669,1738818638284,-500.0,0.0002,3]
[351847670,1738818638293,-500.0,0.0002,3]
[351847673,1738818638303,-500.0,0.0002,3]
[351847675,1738818638313,-500.0,0.0002,3]
[351847677,1738818638323,-500.0,0.0002,2]
[351847679,1738818638333,-500.0,0.0002,3]
[351847681,1738818638342,-500.0,0.0002,3]
[351847683,1738818638353,-613.08624804,0.0002,3]
[351847685,1738818638362,-500.0,0.0002,3]
[351847687,1738818638371,-500.0,0.0002,3]
[351847689,1738818638382,-500.0,0.0002,3]
[351847691,1738818638391,-539.04353385,0.0002,3]
[351847693,1738818638400,-500.0,0.0002,3]
[351847695,1738818638412,-500.0,0.0002,3]
[351847697,1738818638421,-72718.0,0.0002,2]
[351847699,1738818638431,-500.0,0.0002,3]
[351847701,1738818638440,-500.0,0.0002,3]
[351847703,1738818638449,-500.0,0.0002,3]
[351847705,1738818638459,-500.0,0.0002,3]
[351847707,1738818638469,-500.0,0.0002,3]
[351847709,1738818638478,-624.87,0.0002,3]
[351847711,1738818638488,-500.0,0.0002,3]
[351847713,1738818638497,-500.0,0.0002,3]
[351847715,1738818638507,-500.0,0.0002,3]
[351847717,1738818638516,-250000.0,0.0002,30]
[351847719,1738818638526,-500.0,0.00020041,2]
[351847721,1738818638535,-1092.791,0.000201,2]
[351847723,1738818638544,-578.5,0.000201,31]
[351847725,1738818638554,-578.5,0.000201,31]
[351847727,1738818638563,-578.5,0.000201,31]
[351847729,1738818638572,-578.5,0.000201,31]
[351847731,1738818638581,-578.5,0.000201,31]
[351847733,1738818638590,-578.5,0.000201,31]
[351847734,1738818638599,-578.5,0.000201,31]
[351847736,1738818638609,-578.5,0.000201,31]
[351847738,1738818638618,-578.5,0.000201,31]
[351847741,1738818638628,-578.5,0.000201,31]
[351847743,1738818638637,-578.5,0.000201,31]
[351847745,1738818638646,-578.5,0.000201,31]
[351847747,1738818638655,-578.5,0.000201,31]
[351847749,1738818638664,-578.5,0.000201,31]
[351847751,1738818638673,-578.5,0.000201,31]
[351847753,1738818638683,-578.5,0.000201,31]
[351847754,1738818638692,-1862.30510466,0.00020102,2]
[351847756,1738818638701,-302.34,0.00020129,2]
[351847758,1738818638711,-150.0,0.00020187,2]
[351847761,1738818638721,-9611.78296377,0.00020199,10]
[351847763,1738818638731,-533.36643821,0.000202,3]
[351847764,1738818638744,-500.0,0.000202,3]
[351847766,1738818638754,-500.0,0.000202,3]
[351847768,1738818638763,-500.0,0.000202,3]
[351847770,1738818638773,-507.10859688,0.000202,3]
[351847772,1738818638783,-510.17803664,0.000202,3]
[351847774,1738818638793,-512.28288108,0.000202,3]
[351847776,1738818638802,-500.0,0.000202,3]
[351847778,1738818638813,-500.0,0.000202,3]
[351847780,1738818638822,-500.0,0.000202,3]
[351847782,1738818638832,-379.24693476,0.000202,3]
[351847784,1738818638841,-174.21510534,0.00020201,3]
[351847786,1738818638850,-513.09155751,0.00020201,3]
[351847788,1738818638859,-337.83702961,0.00020201,3]
[351847790,1738818638868,-523.47081538,0.00020201,3]
[351847792,1738818638877,-500.0,0.00020201,3]
[351847794,1738818638887,-2500.0,0.00020201,120]
[351847796,1738818638895,-500.0,0.00020201,3]
[351847798,1738818638905,-1745.89497,0.00020201,2]
[351847800,1738818638915,-500.0,0.00020201,3]
[351847802,1738818638924,-500.0,0.00020201,3]
[351847804,1738818638933,-500.0,0.00020201,3]
[351847806,1738818638943,-500.0,0.00020201,3]
[351847808,1738818638951,-500.0,0.00020201,3]
[351847810,1738818638961,-305.54,0.00020201,3]
[351847811,1738818638970,-500.0,0.00020201,3]
[351847814,1738818638980,-1056.52,0.00020201,3]
[351847815,1738818638989,-512.64620266,0.00020201,3]
[351847817,1738818638999,-500.0,0.00020201,3]
[351847819,1738818639008,-500.0,0.00020201,3]
[351847821,1738818639018,-500.0,0.00020201,3]
[351847823,1738818639029,-500.0,0.00020201,3]
[351847825,1738818639039,-500.0,0.00020201,3]
[351847827,1738818639048,-500.0,0.00020201,3]
[351847829,1738818639058,-519.89734224,0.00020201,3]
[351847831,1738818639068,-505.4041061,0.00020201,3]
[351847833,1738818639078,-4167.58,0.00020201,3]
[351847835,1738818639087,-500.0,0.00020201,3]
[351847837,1738818639097,-500.0,0.00020201,3]
[351847839,1738818639107,-500.0,0.00020201,3]
[351847841,1738818639117,-1000.0,0.00020201,2]
[351847843,1738818639127,-1000.0,0.00020201,2]
[351847845,1738818639137,-1000.0,0.00020201,2]
[351847847,1738818639147,-1000.0,0.00020201,2]
[351847849,1738818639156,-1000.0,0.00020201,2]
[351847851,1738818639166,-1000.0,0.00020201,2]
[351847853,1738818639176,-1000.0,0.00020201,2]
[351847855,1738818639185,-1000.0,0.00020201,2]
[351847857,1738818639194,-1000.0,0.00020201,2]
[351847859,1738818639204,-1000.0,0.00020201,2]
[351847861,1738818639213,-1000.0,0.00020201,2]
[351847863,1738818639223,-1000.0,0.00020201,2]
[351847865,1738818639233,-1000.0,0.00020201,2]
[351847867,1738818639242,-1000.0,0.00020201,2]
[351847869,1738818639254,-1000.0,0.00020201,2]
[351847871,1738818639263,-1000.0,0.00020201,2]
[351847873,1738818639273,-1000.0,0.00020201,2]
[351847875,1738818639283,-1000.0,0.00020201,2]
[351847877,1738818639292,-1000.0,0.00020201,2]
[351847879,1738818639301,-1000.0,0.00020201,2]
[351847881,1738818639311,-1000.0,0.00020201,2]
[351847883,1738818639320,-1000.0,0.00020201,2]
[351847885,1738818639329,-1000.0,0.00020201,2]
[351847887,1738818639339,-1000.0,0.00020201,2]
[351847889,1738818639349,-388.92217647,0.00020201,2]
[351847891,1738818639358,-500.0,0.00020201,2]
[351847893,1738818639367,-500.0,0.00020201,2]
[351847895,1738818639377,-666.0,0.00020201,2]
[351847897,1738818639387,-666.0,0.00020201,2]
[351847899,1738818639396,-1000.0,0.00020202,2]
[351847902,1738818639405,-333.4934,0.00020202,2]
[351847904,1738818639415,-2000.0,0.00020202,2]
[351847906,1738818639425,-2000.0,0.00020202,2]
[351847908,1738818639434,-2000.0,0.00020202,2]
[351847910,1738818639444,-1000.0,0.00020202,2]
[351847912,1738818639453,-2000.0,0.00020202,2]
[351847914,1738818639463,-220.961458,0.00020202,2]
[351847916,1738818639472,-151.0,0.00020202,2]
[351847918,1738818639481,-151.0,0.00020202,2]
[351847920,1738818639490,-500.0,0.00020202,2]
[351847922,1738818639499,-151.0,0.00020202,2]
[351847923,1738818639508,-151.0,0.00020202,2]
[351847925,1738818639518,-151.0,0.00020202,2]
[351847927,1738818639528,-151.0,0.00020202,2]
[351847929,1738818639537,-151.0,0.00020202,7]
[351847932,1738818639547,-151.0,0.00020202,7]
[351847934,1738818639557,-151.0,0.00020202,7]
[351847936,1738818639567,-151.0,0.00020202,7]
[351847938,1738818639577,-151.0,0.00020202,7]
[351847940,1738818639587,-151.0,0.00020202,7]
[351847941,1738818639597,-161.18732624,0.00020202,7]
[351847943,1738818639607,-500.0,0.00020202,3]
[351847945,1738818639616,-500.0,0.00020202,3]
[351847947,1738818639626,-201.08611186,0.00020202,120]
[351847949,1738818639636,-500.0,0.00020202,3]
[351847951,1738818639646,-500.74326766,0.00020202,3]